bitfinex-derivatives/quotes_ETHF0:USTF0_20250531
["timestamp","ask_amount","ask_price","bid_price","bid_amount"]
[1748660013003,1.4252535,2489.5,2489.1,3.2078]
[1748660013308,1.4252535,2489.5,2489.4,0.8031]
[1748660013498,1.4252535,2489.5,2489.1,3.2078]
[1748660013700,3.2078,2489.4,2488.8,3.2078]
[1748660013899,1.4252535,2489.5,2488.8,3.2078]
[1748660014110,1.4252535,2489.5,2489.4,4.0109]
[1748660014406,3.14739082,2489.7,2489.6,0.80303]
[1748660014909,1.41506549,2489.7,2489.6,0.80303]
[1748660017212,3.14137349,2490.4,2490.3,0.80281]
[1748660017507,3.94977507,2490.8,2490.6,0.8027]
[1748660017703,0.8026,2491.0,2490.3,8.3268]
[1748660017704,1.3659,2491.1,2490.3,8.3268]
[1748660017905,0.8026,2491.0,2490.6,0.8027]
[1748660018203,0.80252,2491.3,2490.7,3.2078]
[1748660018408,0.00601733,2490.9,2490.8,6.3705]
[1748660018806,0.00601733,2490.9,2490.8,7.17315]
[1748660019008,0.00601733,2490.9,2490.8,10.38095]
[1748660019707,0.00601733,2490.9,2490.8,7.17315]
[1748660020209,0.00601733,2490.9,2490.8,10.38095]
[1748660020711,0.00601733,2490.9,2490.8,7.17315]
[1748660021503,0.00601733,2490.9,2490.8,15.38095]
[1748660022308,0.00601733,2490.9,2490.8,9.5783]
[1748660022612,0.00601733,2490.9,2490.8,10.38095]
[1748660023104,0.00601733,2490.9,2490.8,9.5783]
[1748660023300,0.00601733,2490.9,2490.0,2.00727]
[1748660023505,2.00728,2490.0,2488.9,3.2078]
[1748660023705,3.2078,2489.5,2488.9,3.2078]
[1748660023906,0.80313,2489.3,2488.9,4.01105]
[1748660024112,0.80315,2489.3,2488.9,4.01105]
[1748660024312,0.80916733,2489.3,2488.9,4.01105]
[1748660024510,2.18218,2489.2,2488.9,4.01105]
[1748660024708,0.8032,2489.1,2488.9,3.2078]
[1748660024912,2.18219,2489.2,2488.9,3.2078]
[1748660025110,0.2008,2489.1,2489.0,0.80323]
[1748660025311,0.2008,2489.1,2488.9,3.2078]
[1748660025312,0.2008,2489.1,2488.9,4.01103]
[1748660026114,0.2008,2489.1,2489.0,5.118]
[1748660026315,0.2008,2489.1,2489.0,5.92123]
[1748660026509,0.2008,2489.1,2489.0,5.118]
[1748660026709,3.4086,2489.1,2488.8,5.118]
[1748660026918,3.4086,2489.1,2488.8,5.92128]
[1748660027117,3.4086,2489.1,2489.0,0.80323]
[1748660027417,3.4086,2489.1,2489.0,5.92223]
[1748660027712,3.4086,2489.1,2488.5,3.2078]
[1748660027919,3.4086,2489.1,2488.9,0.80325]
[1748660028114,3.4086,2489.1,2489.0,0.80323]
[1748660028604,3.4086,2489.1,2488.7,1.2591]
[1748660029012,3.4086,2489.1,2489.0,0.80323]
[1748660029215,3.4086,2489.1,2488.9,0.80325]
[1748660029516,3.4086,2489.1,2488.7,1.2591]
[1748660029718,3.4086,2489.1,2489.0,0.80323]
[1748660029917,0.2008,2489.1,2489.0,0.80323]
[1748660030117,1.54597411,2489.1,2489.0,5.80323]
[1748660030313,1.54597411,2489.1,2489.0,0.80323]
[1748660030512,1.54597411,2489.1,2488.7,1.2591]
[1748660030712,1.54597411,2489.1,2489.0,0.80323]
[1748660031121,1.54597411,2489.1,2489.0,5.80323]
[1748660031317,1.54597411,2489.1,2489.0,0.80323]
[1748660033215,1.54597411,2489.1,2489.0,2.05323]
[1748660033413,1.54597411,2489.1,2489.0,6.37]
[1748660033717,1.54597411,2489.1,2489.0,7.17323]
[1748660034116,1.54597411,2489.1,2489.0,6.37]
[1748660034316,1.54597411,2489.1,2489.0,7.17323]
[1748660034722,1.54597411,2489.1,2489.0,5.92323]
[1748660035610,1.54597411,2489.1,2489.0,5.12]
[1748660035812,2.34916411,2489.1,2489.0,5.12]
[1748660036012,1.54597411,2489.1,2489.0,5.92323]
[1748660036822,1.54597411,2489.1,2488.8,3.2078]
[1748660037123,1.54597411,2489.1,2489.0,0.80323]
[1748660037621,1.54597411,2489.1,2489.0,5.80323]
[1748660037922,0.2008,2489.1,2489.0,5.80323]
[1748660038714,1.34454382,2489.5,2489.4,0.8031]
[1748660038924,1.34454382,2489.5,2489.4,9.1319]
[1748660039320,1.34454382,2489.5,2489.4,14.1319]
[1748660039622,3.2078,2489.9,2489.8,0.80297]
[1748660039824,0.00601733,2490.1,2489.8,3.2078]
[1748660040022,0.00601733,2490.1,2490.0,0.8029]
[1748660040219,0.00601733,2490.1,2490.0,2.1321]
[1748660040522,0.00601733,2490.1,2490.0,7.1321]
[1748660040825,0.00601733,2490.1,2490.0,2.1321]
[1748660041024,0.00601733,2490.1,2490.0,7.1321]
[1748660041522,0.00601733,2490.1,2490.0,2.1321]
[1748660041821,0.00601733,2490.1,2490.0,7.1321]
[1748660043024,0.00601733,2490.1,2490.0,2.1321]
[1748660043226,0.00601733,2490.1,2489.9,5.9229]
[1748660043426,1.26831733,2490.1,2489.9,5.12]
[1748660043619,2.07118733,2490.1,2489.8,4.01075]
[1748660043928,2.07118733,2490.1,2489.8,9.19775]
[1748660044125,1.26831733,2490.1,2489.8,9.19774]
[1748660044324,2.07119733,2490.1,2489.8,8.3948]
[1748660044521,1.26831733,2490.1,2489.4,8.3948]
[1748660044717,0.80298,2489.8,2489.5,0.80306]
[1748660045022,1.2623,2489.7,2489.5,0.80305]
[1748660045329,0.80304,2489.6,2489.4,8.3948]
[1748660045528,1.3582,2489.5,2489.4,8.3948]
[1748660045823,2.16126,2489.5,2489.4,8.3948]
[1748660046022,3.2078,2489.9,2489.2,0.00601733]
[1748660046326,0.80304,2489.6,2489.2,1.36001733]
[1748660046525,0.80307,2489.5,2489.2,2.16314733]
[1748660046729,1.3582,2489.8,2489.2,1.36001733]
[1748660046923,0.80313,2489.3,2489.2,0.00601733]
[1748660047926,1.3582,2489.4,2489.2,0.00601733]
[1748660048229,2.16131,2489.4,2489.2,0.00601733]
[1748660048422,1.3582,2489.4,2489.2,0.80916733]
[1748660048623,0.80313,2489.3,2489.2,0.00601733]
[1748660048923,1.3582,2489.4,2489.2,0.00601733]
[1748660049228,0.80313,2489.3,2489.2,0.00601733]
[1748660050222,0.80332,2488.7,2488.6,5.188]
[1748660050722,0.80332,2488.7,2487.5,3.2078]
[1748660050723,5.0,2488.7,2487.5,3.2078]
[1748660050916,2.00818,2488.9,2487.2,8.3958]
[1748660050917,3.2078,2488.0,2487.2,8.3958]
[1748660051127,2.00884,2488.1,2487.2,8.3958]
[1748660051128,0.80377,2487.4,2487.2,8.3958]
[1748660051422,3.2078,2487.7,2486.8,5.188]
[1748660051625,3.2078,2487.6,2486.8,5.188]
[1748660051833,3.2078,2487.6,2487.0,3.2078]
[1748660052017,0.00602954,2487.8,2487.0,3.2078]
[1748660052222,0.80364,2487.7,2487.2,0.80379]
[1748660052427,0.00602954,2487.8,2487.4,3.2078]
[1748660052631,0.00602954,2487.8,2487.5,0.80369]
[1748660052832,0.00602954,2487.8,2487.3,5.188]
[1748660053135,3.2078,2487.7,2487.3,5.188]
[1748660053431,2.00945,2487.3,2485.8,3.2078]
[1748660053727,0.80398,2486.7,2486.2,0.80411]
[1748660054034,3.2078,2487.4,2486.4,3.2078]
[1748660054329,0.00602954,2487.1,2486.8,3.2078]
[1748660054526,0.00602954,2487.1,2486.9,5.189]
[1748660054719,0.00602954,2487.1,2487.0,0.80387]
[1748660054925,1.2628,2487.6,2487.5,0.80371]
[1748660055122,3.94977507,2488.4,2488.3,0.80345]
[1748660055322,0.6404,2489.3,2488.3,8.3968]
[1748660055527,0.6764,2489.4,2489.2,0.80316]
[1748660055724,3.2078,2490.0,2489.3,3.2078]
[1748660055919,0.00602954,2489.9,2489.5,3.2078]
[1748660056132,0.00602954,2489.9,2489.8,4.01076]
[1748660056327,0.00602954,2489.9,2489.4,4.01689954]
[1748660056533,0.00602954,2489.9,2489.4,0.00602954]
[1748660056534,0.80306,2489.5,2489.4,0.00602954]
[1748660057230,0.88339741,2489.5,2489.4,0.00602954]
[1748660057731,5.88339741,2489.5,2489.4,0.00602954]
[1748660058337,5.08033741,2489.5,2488.7,8.3958]
[1748660058526,3.2078,2489.3,2488.7,8.3958]
[1748660058836,1.3745,2489.2,2488.7,8.3958]
[1748660059331,1.3745,2489.2,2488.9,0.80323]
[1748660059536,0.00602954,2489.9,2489.0,4.4957]
[1748660059724,4.5823,2489.8,2489.3,4.01091]
[1748660060023,4.5823,2489.8,2489.4,5.188]
[1748660060227,0.00602954,2489.9,2489.8,0.80296]
[1748660060430,3.8547,2490.7,2489.6,3.2078]
[1748660060635,0.6469,2490.7,2490.4,3.2078]
[1748660060835,0.80266,2490.8,2490.4,3.2078]
[1748660060836,1.3499,2490.8,2490.5,5.189]
[1748660061031,3.2078,2491.1,2490.6,0.80268]
[1748660061338,1.5506,2491.0,2490.6,2.10649]
[1748660061533,1.5506,2491.0,2490.6,1.30982954]
[1748660062239,0.2007,2491.0,2490.9,4.01041]
[1748660062736,0.659,2491.7,2490.9,8.2078]
[1748660063037,0.80226,2492.0,2491.2,3.2078]
[1748660063229,3.2078,2492.2,2491.5,3.2078]
[1748660063433,3.2078,2492.2,2491.6,6.4918]
[1748660063635,1.3499,2492.4,2491.9,3.2078]
[1748660063838,0.00602954,2492.4,2492.2,3.2078]
[1748660064136,3.2078,2493.1,2492.3,6.5052]
[1748660064333,0.80196,2493.0,2492.5,3.2078]
[1748660064533,0.2005,2492.9,2492.6,1.3172]
[1748660065136,0.2005,2492.9,2492.6,5.188]
[1748660065628,0.2005,2492.9,2492.6,8.3958]
[1748660065938,0.2005,2492.9,2492.7,3.2078]
[1748660066739,0.2005,2492.9,2492.8,1.3249]
[1748660067440,0.2005,2492.9,2492.6,5.188]
[1748660067635,1.3245,2492.8,2492.6,5.188]
[1748660067841,0.2005,2492.9,2492.7,5.186]
[1748660068532,0.2005,2492.9,2492.8,1.3249]
[1748660068731,0.2005,2492.9,2492.8,2.1269]
[1748660068933,0.2005,2492.9,2492.8,7.1269]
[1748660069538,0.80175,2493.6,2492.8,6.3249]
[1748660069741,0.80172,2493.7,2493.1,0.80188]
[1748660069936,4.5323,2493.8,2493.2,9.638]
[1748660070242,0.80179,2493.5,2493.3,5.184]
[1748660070746,2.14868733,2493.6,2493.3,5.184]
[1748660070938,3.2078,2493.5,2493.3,5.184]
[1748660071442,0.00601733,2493.6,2493.4,1.2462]
[1748660071652,0.00601733,2493.6,2493.4,2.04798]
[1748660071943,0.00601733,2493.6,2493.4,1.2462]
[1748660072437,1.00825733,2493.6,2493.4,1.2462]
[1748660072641,0.8018,2493.4,2493.3,5.184]
[1748660072845,0.20651733,2493.6,2493.3,5.184]
[1748660073147,4.0096,2493.4,2493.3,5.184]
[1748660073338,1.00827733,2493.6,2493.3,5.184]
[1748660073539,0.8018,2493.4,2493.3,5.184]
[1748660074449,0.20651733,2493.6,2493.3,5.184]
[1748660074643,0.20651733,2493.6,2493.3,6.5429]
[1748660074845,0.20651733,2493.6,2493.3,7.34473]
[1748660075044,0.20651733,2493.6,2493.3,6.5429]
[1748660075347,0.20651733,2493.6,2493.5,0.80177]
[1748660075937,0.20651733,2493.6,2493.5,4.00957]
[1748660078843,3.2078,2494.1,2493.5,8.2078]
[1748660079152,3.2078,2494.1,2494.0,0.80161]
[1748660079343,3.2078,2494.5,2494.1,0.80157]
[1748660079652,0.8015,2494.4,2494.1,2.11197]
[1748660079946,0.80163,2494.0,2493.6,3.2078]
[1748660080144,3.21381733,2494.5,2493.7,5.362]
[1748660080340,3.21381733,2494.5,2493.9,3.2078]
[1748660080545,3.21381733,2494.5,2494.1,0.80156]
[1748660080845,1.00189,2494.4,2494.2,6.6724]
[1748660081249,0.2004,2494.4,2494.2,6.6724]
[1748660081747,0.2004,2494.4,2494.3,1.3104]
[1748660081948,0.2004,2494.4,2494.3,2.11191]
[1748660082748,0.2004,2494.4,2494.3,1.3104]
[1748660083247,1.00188,2494.4,2494.3,1.3104]
[1748660083553,0.2004,2494.4,2493.9,3.2078]
[1748660083739,0.80155,2494.2,2493.9,4.00942]
[1748660083941,3.2078,2494.2,2494.0,5.361]
[1748660084139,2.13748,2494.1,2494.0,5.361]
[1748660084952,6.3359,2494.1,2493.6,5.36]
[1748660085251,0.80171,2493.7,2493.6,5.36]
[1748660085448,2.0043,2493.7,2492.7,3.2078]
[1748660085651,2.0043,2493.7,2492.3,0.80216]
[1748660085652,0.80207,2492.6,2492.3,0.80216]
[1748660085853,3.2078,2492.5,2492.4,5.36]
[1748660086246,5.27749,2492.5,2492.4,5.36]
[1748660086452,1.2676,2492.5,2492.4,5.36]
[1748660086649,0.00601733,2492.7,2492.4,5.36]
[1748660086857,0.00601733,2492.7,2492.5,2.04598]
[1748660087048,0.00601733,2492.7,2492.6,0.80206]
[1748660087351,0.00601733,2492.7,2492.5,2.04598]
[1748660087552,0.00601733,2492.7,2492.6,0.80206]
[1748660087948,0.00601733,2492.7,2492.5,1.2439]
[1748660088556,0.00601733,2492.7,2492.5,2.04599]
[1748660088756,0.00601733,2492.7,2492.6,0.80206]
[1748660088958,0.00601733,2492.7,2492.5,1.2439]
[1748660089156,0.00601733,2492.7,2492.5,2.04599]
[1748660089353,0.00601733,2492.7,2492.6,0.80206]
[1748660089753,0.00601733,2492.7,2492.5,1.2439]
[1748660090058,0.00601733,2492.7,2492.6,0.80206]
[1748660093063,1.26477693,2492.7,2492.6,0.80206]
[1748660094250,4.4754,2493.1,2493.0,0.80193]
[1748660094251,3.2078,2493.1,2493.0,0.80193]
[1748660094453,2.32021049,2493.3,2493.2,0.80187]
[1748660095057,2.32021049,2493.3,2493.1,1.2805]
[1748660095266,2.32021049,2493.3,2492.8,3.2078]
[1748660095466,2.32021049,2493.3,2493.1,0.80188]
[1748660095667,1.3495,2493.3,2493.1,0.80188]
[1748660095971,0.80189,2493.2,2492.9,6.16296]
[1748660096163,2.15141,2493.1,2492.9,5.361]
[1748660096976,2.1514,2493.1,2492.9,6.16295]
[1748660097176,2.1514,2493.1,2492.9,5.361]
[1748660097676,2.1514,2493.1,2492.9,6.16297]
[1748660097877,1.3495,2493.1,2492.9,6.16297]
[1748660098073,1.3495,2493.1,2493.0,0.80193]
[1748660098272,2.15143,2493.1,2492.9,5.361]
[1748660098475,1.3495,2493.1,2492.9,6.16296]
[1748660098674,1.3495,2493.1,2492.9,5.361]
[1748660098977,4.5573,2493.1,2492.9,5.361]
[1748660099371,3.2078,2493.1,2493.0,0.80193]
[1748660099773,3.2078,2493.1,2492.9,6.16295]
[1748660100078,1.322,2493.0,2492.9,6.16295]
[1748660100776,3.2078,2493.1,2493.0,0.80193]
[1748660100973,2.32622782,2493.4,2493.3,0.80184]
[1748660101370,0.00601733,2493.4,2493.3,0.80184]
[1748660101571,0.00601733,2493.4,2493.3,4.00964]
[1748660102476,0.00601733,2493.4,2493.3,0.80184]
[1748660102977,0.80193,2493.0,2492.9,5.361]
[1748660103570,0.80192,2493.1,2492.9,5.361]
[1748660103773,1.3181,2493.0,2492.9,5.361]
[1748660103977,1.3181,2493.0,2492.9,6.16297]
[1748660104179,2.12003,2493.0,2492.9,5.361]
[1748660104378,1.3181,2493.0,2492.9,6.16297]
[1748660105281,1.3181,2493.0,2492.9,5.361]
[1748660105472,2.12003,2493.0,2492.9,5.361]
[1748660105668,1.3181,2493.0,2492.9,6.16297]
[1748660106078,1.3181,2493.0,2492.9,5.361]
[1748660106481,6.3181,2493.0,2492.2,3.21381733]
[1748660106782,4.00984,2492.7,2492.4,5.9661]
[1748660106980,1.349,2492.6,2492.4,5.164]
[1748660107276,20.344,2492.5,2491.2,3.2078]
[1748660107478,0.80236,2491.7,2491.3,5.96646]
[1748660107683,1.349,2491.6,2491.3,5.96646]
[1748660107881,0.80245,2491.4,2491.3,5.164]
[1748660108070,3.2078,2491.5,2490.9,11.35459726]
[1748660108071,0.80258,2491.0,2490.9,13.31179726]
[1748660108276,3.2078,2491.0,2490.9,13.31179726]
[1748660108573,7.33e-06,2491.2,2491.1,0.80255]
[1748660108774,7.33e-06,2491.2,2491.1,4.01035]
[1748660108981,7.33e-06,2491.2,2491.1,9.01035]
[1748660109172,7.33e-06,2491.2,2491.1,5.80255]
[1748660109377,7.33e-06,2491.2,2491.1,5.96755]
[1748660109682,7.33e-06,2491.2,2491.1,9.17535]
[1748660110378,7.33e-06,2491.2,2491.1,5.165]
[1748660110592,7.33e-06,2491.2,2490.7,0.00601733]
[1748660110593,3.20780733,2491.2,2490.7,0.00601733]
[1748660111079,7.33e-06,2491.2,2491.1,4.01035]
[1748660111280,7.33e-06,2491.2,2491.1,5.96755]
[1748660111480,7.33e-06,2491.2,2491.1,5.165]
[1748660111786,7.33e-06,2491.2,2491.1,5.96755]
[1748660112683,7.33e-06,2491.2,2491.1,5.165]
[1748660112887,7.33e-06,2491.2,2491.1,5.96755]
[1748660113683,0.20070733,2491.2,2491.1,5.96755]
[1748660114787,3.2078,2491.7,2491.6,0.80238]
[1748660115085,3.2078,2491.7,2491.6,5.96838]
[1748660115578,3.2078,2491.7,2491.6,5.166]
[1748660116184,3.2078,2491.7,2491.6,5.96838]
[1748660116380,0.00601733,2491.9,2491.6,5.96838]
[1748660116381,7.33e-06,2491.9,2491.6,10.166]
[1748660116684,7.33e-06,2491.9,2491.8,4.01012]
[1748660117076,7.58409016,2492.9,2491.8,9.5669]
[1748660117279,7.58409016,2492.9,2492.8,0.802]
[1748660117588,1.336,2492.9,2492.4,3.2078]
[1748660117779,5.21299,2492.6,2491.6,5.167]
[1748660117981,0.80235,2491.7,2491.6,5.167]
[1748660118184,0.80228,2492.0,2491.5,3.2078]
[1748660118486,0.80228,2492.0,2491.7,0.80234]
[1748660118487,2.13738,2492.0,2491.7,0.80234]
[1748660118686,1.3351,2492.0,2491.5,3.2078]
[1748660118985,1.3351,2492.0,2491.4,0.80844733]
[1748660119181,4.01015,2491.8,2491.4,0.80844733]
[1748660119382,1.3351,2491.7,2491.4,0.80844733]
[1748660119583,1.3351,2491.7,2491.5,0.80239]
[1748660120183,1.3351,2491.7,2491.6,0.80238]
[1748660120380,1.3351,2491.7,2491.4,0.00601733]
[1748660120881,1.3351,2491.7,2491.6,0.80238]
[1748660121984,3.2078,2492.1,2491.8,0.8023]
[1748660122186,2.13296,2492.0,2491.7,0.80234]
[1748660122482,0.80229,2491.9,2491.6,0.80237]
[1748660122683,1.3307,2491.8,2491.7,0.80235]
[1748660122879,1.3307,2491.8,2491.6,0.80236]
[1748660123080,0.80241,2491.6,2491.4,5.17301733]
[1748660123287,1.3307,2491.5,2491.4,5.17301733]
[1748660123474,10.34092,2491.5,2491.4,0.00601733]
[1748660123984,0.80255,2491.1,2491.0,5.167]
[1748660124283,5.80255,2491.1,2491.0,5.167]
[1748660124779,7.79915,2491.1,2491.0,5.167]
[1748660125483,6.9966,2491.1,2491.0,5.167]
[1748660126384,1.9966,2491.1,2491.0,5.167]
[1748660126776,6.9966,2491.1,2491.0,5.167]
[1748660127180,1.9966,2491.1,2491.0,5.96958]
[1748660127379,1.9966,2491.1,2491.0,5.167]
[1748660128085,3.4085,2491.2,2491.0,5.167]
[1748660128780,1.3034,2491.1,2491.0,5.167]
[1748660129285,2.10595,2491.1,2491.0,5.167]
[1748660129887,6.3034,2491.1,2490.8,0.00601733]
[1748660130190,1.3034,2491.1,2490.8,0.00601733]
[1748660130377,1.3034,2491.1,2490.9,0.8026]
[1748660130573,2.10595,2491.1,2490.9,0.8026]
[1748660130783,6.3034,2491.1,2490.8,0.00601733]
[1748660130986,0.80261,2491.0,2490.8,0.00601733]
[1748660131287,2.00663,2490.8,2490.1,5.168]
[1748660131486,0.80284,2490.2,2490.1,5.168]
[1748660132082,0.80282,2490.3,2490.1,5.168]
[1748660132283,1.3524,2490.2,2490.1,5.97087]
[1748660132584,1.3524,2490.2,2490.1,5.168]
[1748660132784,1.3524,2490.2,2490.1,5.97087]
[1748660133285,1.3524,2490.2,2490.1,5.168]
[1748660133482,0.00601733,2490.4,2490.1,5.168]
[1748660133787,0.00601733,2490.4,2490.3,0.8028]
[1748660135280,0.00601733,2490.4,2490.3,5.8028]
[1748660135485,1.3058,2491.1,2490.3,7.00701]
[1748660135690,0.80258,2491.0,2490.8,0.80263]
[1748660135881,0.80258,2491.0,2490.8,5.115]
[1748660136087,0.80261,2490.9,2490.8,5.115]
[1748660136285,0.80256,2491.1,2490.8,9.12542]
[1748660136587,0.80259,2491.0,2490.8,5.115]
[1748660136786,0.00601733,2491.1,2490.8,5.115]
[1748660136981,0.00601733,2491.1,2490.9,0.8026]
[1748660137184,0.00601733,2491.1,2490.8,5.115]
[1748660137385,2.08287733,2491.1,2490.8,5.115]
[1748660137586,0.00601733,2491.1,2491.0,0.80258]
[1748660138594,0.00601733,2491.1,2490.8,8.3228]
[1748660138793,0.80857733,2491.1,2490.9,0.80259]
[1748660139092,0.80857733,2491.1,2490.8,5.91762]
[1748660139286,1.00927733,2491.1,2490.8,5.91762]
[1748660139681,0.80259,2491.0,2490.8,5.91764]
[1748660139886,0.80259,2491.0,2490.8,5.115]
[1748660140086,0.20671733,2491.1,2490.8,5.115]
[1748660140281,0.20671733,2491.1,2490.9,0.80258]
[1748660140486,0.20671733,2491.1,2491.0,0.80258]
[1748660141892,0.20671733,2491.1,2491.0,5.80258]
[1748660144790,0.20671733,2491.1,2490.9,2.176]
[1748660145104,0.20671733,2491.1,2490.9,2.17599]
[1748660145394,0.20671733,2491.1,2491.0,5.115]
[1748660145395,1.00925733,2491.1,2491.0,5.115]
[1748660145988,2.27355733,2491.1,2491.0,5.115]
[1748660146597,0.20671733,2491.1,2491.0,5.115]
[1748660147391,1.00925733,2491.1,2491.0,5.115]
[1748660147792,0.20671733,2491.1,2491.0,5.115]
[1748660147994,1.00925733,2491.1,2491.0,5.115]
[1748660150402,0.20671733,2491.1,2491.0,5.91758]
[1748660150603,0.20671733,2491.1,2491.0,5.115]
[1748660150799,1.00925733,2491.1,2491.0,5.115]
[1748660151201,0.80265,2490.8,2490.6,0.80269]
[1748660151505,0.80265,2490.8,2490.7,5.115]
[1748660153103,0.8027,2490.7,2490.5,4.01053]
[1748660153302,0.8027,2490.7,2490.6,5.115]
[1748660153502,1.2645,2491.0,2490.6,5.115]
[1748660153807,0.20671733,2491.1,2490.6,5.115]
[1748660154007,0.8026,2491.0,2490.7,2.15295]
[1748660154205,0.8026,2491.0,2490.8,1.3503]
[1748660154705,0.20671733,2491.1,2490.8,1.3503]
[1748660154706,0.80261,2490.9,2490.8,1.3503]
[1748660155507,2.14309,2491.0,2490.7,0.80267]
[1748660155800,0.20671733,2491.1,2490.9,0.80261]
[1748660156004,0.20671733,2491.1,2491.0,1.3749]
[1748660156005,1.00925733,2491.1,2491.0,1.3749]
[1748660156608,0.80259,2491.0,2490.8,0.80262]
[1748660156904,0.20671733,2491.1,2490.6,5.115]
[1748660156905,0.80266,2490.8,2490.7,1.3749]
[1748660157307,0.80267,2490.7,2490.6,5.115]
[1748660157506,0.80266,2490.8,2490.6,5.9177]
[1748660158309,2.14313,2490.9,2490.7,0.80267]
[1748660158608,2.14314,2490.9,2490.6,5.91768]
[1748660159003,1.3405,2490.9,2490.6,5.115]
[1748660159202,0.80264,2490.8,2490.6,5.115]
[1748660159406,2.14313,2490.9,2490.7,5.91766]
[1748660159706,2.14313,2490.9,2490.7,5.115]
[1748660159707,0.80264,2490.8,2490.7,5.115]
[1748660160708,0.6495,2491.0,2490.7,5.115]
[1748660161011,0.00601733,2491.1,2490.7,5.115]
[1748660161206,0.80264,2490.8,2490.7,5.115]
[1748660161710,2.06219,2491.0,2490.8,0.80264]
[1748660162010,0.00601733,2491.1,2490.7,5.115]
[1748660162208,0.00601733,2491.1,2491.0,0.80258]
[1748660162511,0.20671733,2491.1,2490.9,9.12538]
[1748660162711,0.20671733,2491.1,2491.0,2.08858]
[1748660163210,0.20671733,2491.1,2491.0,1.286]
[1748660163413,0.80259,2491.0,2490.7,1.48316]
[1748660163712,2.26887733,2491.1,2490.8,5.91762]
[1748660163909,4.67411733,2491.1,2490.9,5.115]
[1748660164102,0.80258,2491.0,2490.9,5.115]
[1748660164308,2.12668,2491.0,2490.9,5.115]
[1748660164606,6.3241,2491.0,2490.6,3.2078]
[1748660164802,0.80264,2490.9,2490.7,4.941]
[1748660165215,0.80264,2490.8,2490.7,4.941]
[1748660167513,0.20671733,2491.1,2490.7,4.941]
[1748660167715,0.20671733,2491.1,2491.0,0.80258]
[1748660169512,0.80261,2490.9,2490.8,4.4526]
[1748660169715,1.00925733,2491.1,2491.0,4.941]
[1748660171316,1.00925733,2491.1,2491.0,4.94]
[1748660171505,2.21310733,2491.1,2490.5,3.2078]
[1748660171709,1.2573,2491.0,2490.6,4.94]
[1748660171906,0.80274,2490.5,2490.4,1.2681]
[1748660172110,3.2078,2490.8,2490.4,6.2081]
[1748660172310,1.2573,2490.7,2490.4,6.2081]
[1748660172519,0.80271,2490.6,2490.4,6.2081]
[1748660172812,0.80274,2490.5,2490.4,6.2081]
[1748660173020,0.80272,2490.6,2490.4,6.2081]
[1748660173219,0.80274,2490.5,2490.4,6.2081]
[1748660173706,0.8028,2490.3,2490.2,3.2078]
[1748660173907,0.8028,2490.3,2490.2,4.94]
[1748660174317,0.80283,2490.2,2490.1,45.411]
[1748660174512,0.80283,2490.2,2490.1,40.47]
[1748660174718,0.80287,2490.1,2490.0,0.00601733]
[1748660174913,4.01067,2490.1,2490.0,0.00601733]
[1748660175120,9.01067,2490.1,2490.0,0.00601733]
[1748660175817,10.28913825,2490.1,2490.0,0.00601733]
[1748660176912,1.27846825,2490.1,2490.0,0.00601733]
[1748660177220,1.27846825,2490.1,2490.0,0.80891733]
[1748660177413,0.8028,2490.3,2490.0,0.80891733]
[1748660177609,0.6562,2490.5,2490.1,1.2649]
[1748660177918,0.6296,2490.6,2490.2,4.941]
[1748660178123,0.80277,2490.4,2490.3,1.2649]
[1748660178519,0.6296,2490.6,2490.3,1.2649]
[1748660178719,0.80274,2490.5,2490.3,1.2649]
[1748660178920,0.80277,2490.4,2490.3,1.2649]
[1748660179223,0.8028,2490.3,2490.2,4.941]
[1748660179923,0.80287,2490.1,2490.0,3.21381733]
[1748660180126,0.80287,2490.1,2490.0,8.15481733]
[1748660181018,0.8028,2490.4,2490.1,0.80286]
[1748660181219,2.12513,2490.6,2490.1,1.3543]
[1748660181429,1.3224,2490.6,2490.1,1.3543]
[1748660181724,1.3224,2490.6,2490.2,5.74383]
[1748660181924,1.3224,2490.6,2490.2,4.941]
[1748660182126,0.8028,2490.3,2490.2,4.941]
[1748660183328,3.2078,2490.7,2490.4,0.80276]
[1748660183329,4.0105,2490.7,2490.4,0.80276]
[1748660183624,0.80271,2490.6,2490.3,2.05868]
[1748660184026,0.80271,2490.6,2490.4,0.80277]
[1748660184327,3.2078,2490.7,2490.3,1.2559]
[1748660184328,3.2078,2490.7,2490.6,0.80271]
[1748660184827,3.2078,2490.7,2490.5,2.05862]
[1748660185029,3.2078,2490.7,2490.6,0.80271]
[1748660186128,4.09751733,2491.1,2490.5,1.2559]
[1748660186329,0.88971733,2491.1,2490.7,0.80265]
[1748660186527,0.80261,2490.9,2490.8,6.3002]
[1748660187729,0.8026,2491.0,2490.8,7.10284]
[1748660187923,0.80857733,2491.1,2490.8,6.3002]
[1748660188229,0.80858733,2491.1,2490.8,7.10282]
[1748660188420,0.80258,2491.0,2490.8,6.3002]
[1748660188624,0.80857733,2491.1,2490.9,0.8026]
[1748660188822,0.80857733,2491.1,2491.0,1.2926]
[1748660189329,1.00925733,2491.1,2491.0,1.2926]
[1748660190027,0.80261,2490.9,2490.8,4.941]
[1748660190423,1.2564,2491.0,2490.8,4.941]
[1748660190622,0.8026,2491.0,2490.8,4.941]
[1748660190823,0.8026,2491.0,2490.9,1.2926]
[1748660192033,0.80261,2490.9,2490.8,4.941]
[1748660192236,0.80261,2490.9,2490.8,6.2129]
[1748660193333,0.20671733,2491.1,2490.8,6.2129]
[1748660193535,0.20671733,2491.1,2491.0,0.80258]
[1748660194231,0.20671733,2491.1,2491.0,2.05278]